Workbook

Sheet Årstrender
A1: Rubrik, utgiftstrender
A2: Månad | B2: Utgift 1 | C2: Utgift 2 | D2: Utgift 3 | E2: Utgift 4 | F2: Utgift 5
A3: Jan | B3: =SUBTOTAL(109,Utgift11[Belopp]) -> 100.00 | C3: =SUBTOTAL(109,Utgift21[Belopp]) -> 200.00 | D3: =SUBTOTAL(109,Utgift31[Belopp]) -> 300.00 | E3: =SUBTOTAL(109,Utgift41[Belopp]) -> 400.00 | F3: =SUBTOTAL(109,Utgift51[Belopp]) -> 500.00
A4: Feb | B4: =SUBTOTAL(109,Utgift12[Belopp]) -> 200.00 | C4: =SUBTOTAL(109,Utgift22[Belopp]) -> 200.00 | D4: =SUBTOTAL(109,Utgift32[Belopp]) -> 300.00 | E4: =SUBTOTAL(109,Utgift42[Belopp]) -> 400.00 | F4: =SUBTOTAL(109,Utgift52[Belopp]) -> 500.00
A5: Mar | B5: =SUBTOTAL(109,Utgift13[Belopp]) -> 300.00 | C5: =SUBTOTAL(109,Utgift23[Belopp]) -> 200.00 | D5: =SUBTOTAL(109,Utgift33[Belopp]) -> 300.00 | E5: =SUBTOTAL(109,Utgift43[Belopp]) -> 400.00 | F5: =SUBTOTAL(109,Utgift53[Belopp]) -> 500.00
A6: Apr | B6: =SUBTOTAL(109,Utgift14[Belopp]) -> 400.00 | C6: =SUBTOTAL(109,Utgift24[Belopp]) -> 200.00 | D6: =SUBTOTAL(109,Utgift34[Belopp]) -> 300.00 | E6: =SUBTOTAL(109,Utgift44[Belopp]) -> 400.00 | F6: =SUBTOTAL(109,Utgift54[Belopp]) -> 500.00
A7: Maj | B7: =SUBTOTAL(109,Utgift15[Belopp]) -> 500.00 | C7: =SUBTOTAL(109,Utgift25[Belopp]) -> 200.00 | D7: =SUBTOTAL(109,Utgift35[Belopp]) -> 300.00 | E7: =SUBTOTAL(109,Utgift45[Belopp]) -> 400.00 | F7: =SUBTOTAL(109,Utgift55[Belopp]) -> 500.00
A8: Jun | B8: =SUBTOTAL(109,Utgift16[Belopp]) -> 600.00 | C8: =SUBTOTAL(109,Utgift26[Belopp]) -> 200.00 | D8: =SUBTOTAL(109,Utgift36[Belopp]) -> 300.00 | E8: =SUBTOTAL(109,Utgift46[Belopp]) -> 400.00 | F8: =SUBTOTAL(109,Utgift56[Belopp]) -> 500.00
A9: Jul | B9: =SUBTOTAL(109,Utgift17[Belopp]) -> 700.00 | C9: =SUBTOTAL(109,Utgift27[Belopp]) -> 200.00 | D9: =SUBTOTAL(109,Utgift37[Belopp]) -> 300.00 | E9: =SUBTOTAL(109,Utgift47[Belopp]) -> 400.00 | F9: =SUBTOTAL(109,Utgift57[Belopp]) -> 500.00
A10: Aug | B10: =SUBTOTAL(109,Utgift18[Belopp]) -> 800.00 | C10: =SUBTOTAL(109,Utgift28[Belopp]) -> 200.00 | D10: =SUBTOTAL(109,Utgift38[Belopp]) -> 300.00 | E10: =SUBTOTAL(109,Utgift48[Belopp]) -> 400.00 | F10: =SUBTOTAL(109,Utgift58[Belopp]) -> 500.00
A11: Sep | B11: =SUBTOTAL(109,Utgift19[Belopp]) -> 900.00 | C11: =SUBTOTAL(109,Utgift29[Belopp]) -> 200.00 | D11: =SUBTOTAL(109,Utgift39[Belopp]) -> 300.00 | E11: =SUBTOTAL(109,Utgift49[Belopp]) -> 400.00 | F11: =SUBTOTAL(109,Utgift59[Belopp]) -> 500.00
A12: Okt | B12: =SUBTOTAL(109,Utgift110[Belopp]) -> 1,000.00 | C12: =SUBTOTAL(109,Utgift210[Belopp]) -> 200.00 | D12: =SUBTOTAL(109,Utgift310[Belopp]) -> 300.00 | E12: =SUBTOTAL(109,Utgift410[Belopp]) -> 400.00 | F12: =SUBTOTAL(109,Utgift510[Belopp]) -> 500.00
A13: Nov | B13: =SUBTOTAL(109,Utgift111[Belopp]) -> 1,100.00 | C13: =SUBTOTAL(109,Utgift211[Belopp]) -> 200.00 | D13: =SUBTOTAL(109,Utgift311[Belopp]) -> 300.00 | E13: =SUBTOTAL(109,Utgift411[Belopp]) -> 400.00 | F13: =SUBTOTAL(109,Utgift511[Belopp]) -> 500.00
A14: Dec | B14: =SUBTOTAL(109,Utgift112[Belopp]) -> 1,200.00 | C14: =SUBTOTAL(109,Utgift212[Belopp]) -> 200.00 | D14: =SUBTOTAL(109,Utgift312[Belopp]) -> 300.00 | E14: =SUBTOTAL(109,Utgift412[Belopp]) -> 400.00 | F14: =SUBTOTAL(109,Utgift512[Belopp]) -> 500.00
A15: Totalt | B15: =SUM(B3:B14) -> 7,800.00 | C15: =SUM(C3:C14) -> 2,400.00 | D15: =SUM(D3:D14) -> 3,600.00 | E15: =SUM(E3:E14) -> 4,800.00 | F15: =SUM(F3:F14) -> 6,000.00
A16: Trender

Sheet Jan
A1: Utgifter i januari
C3: TOTALT | D3: =SUM(D10,D17,D24,D30,D36) -> $1,500.00
A4: Utgift 1
A5: Datum | B5: IO nr | C5: Leverantör/beskrivning | D5: Belopp
A6: 2010-01-08 | C6: Exempel 1 | D6: 100.00
A10: Delsumma | D10: =SUBTOTAL(109,Utgift11[Belopp]) -> 100.00
A11: x
A12: Utgift 2
A13: Datum | B13: IO nr | C13: Beskrivning | D13: Belopp
A14: 2010-01-04 | C14: Exempel 2 | D14: 200.00
A17: Delsumma | D17: =SUBTOTAL(109,Utgift21[Belopp]) -> 200.00
A18: x
A19: Utgift 3
A20: Datum | B20: IO nr | C20: Leverantör/beskrivning | D20: Belopp
A21: 2010-01-02 | C21: Exempel 3 | D21: 300.00
A24: Delsumma | D24: =SUBTOTAL(109,Utgift31[Belopp]) -> 300.00
A25: x
A26: Utgift 4
A27: Datum | B27: IO nr | C27: Leverantör/beskrivning | D27: Belopp
A28: 2010-01-10 | C28: Exempel 4 | D28: 400.00
A30: Delsumma | D30: =SUBTOTAL(109,Utgift41[Belopp]) -> 400.00
A31: s
A32: Utgift 5
A33: Datum | B33: IO nr | C33: Leverantör/beskrivning | D33: Belopp
A34: 2010-01-25 | C34: Exempel 5 | D34: 500.00
A36: Delsumma | D36: =SUBTOTAL(109,Utgift51[Belopp]) -> 500.00

Sheet Feb
A1: Utgifter i februari
C3: TOTALT | D3: =SUM(D10,D17,D24,D30,D36) -> 1,600.00
A4: Utgift 1
A5: Datum | B5: IO nr | C5: Leverantör/beskrivning | D5: Belopp
A6: 2010-02-08 | C6: Exempel 1 | D6: 200.00
A10: Delsumma | D10: =SUBTOTAL(109,Utgift12[Belopp]) -> 200.00
A11: x
A12: Utgift 2
A13: Datum | B13: IO nr | C13: Beskrivning | D13: Belopp
A14: 2010-02-04 | C14: Exempel 2 | D14: 200.00
A17: Delsumma | D17: =SUBTOTAL(109,Utgift22[Belopp]) -> 200.00
A18: x
A19: Utgift 3
A20: Datum | B20: IO nr | C20: Leverantör/beskrivning | D20: Belopp
A21: 2010-02-02 | C21: Exempel 3 | D21: 300.00
A24: Delsumma | D24: =SUBTOTAL(109,Utgift32[Belopp]) -> 300.00
A25: x
A26: Utgift 4
A27: Datum | B27: IO nr | C27: Leverantör/beskrivning | D27: Belopp
A28: 2010-02-10 | C28: Exempel 4 | D28: 400.00
A30: Delsumma | D30: =SUBTOTAL(109,Utgift42[Belopp]) -> 400.00
A31: s
A32: Utgift 5
A33: Datum | B33: IO nr | C33: Leverantör/beskrivning | D33: Belopp
A34: 2010-02-25 | C34: Exempel 5 | D34: 500.00
A36: Delsumma | D36: =SUBTOTAL(109,Utgift52[Belopp]) -> 500.00

Sheet Mar
A1: Utgifter i mars
C3: TOTALT | D3: =SUM(D10,D17,D24,D30,D36) -> 1,700.00
A4: Utgift 1
A5: Datum | B5: IO nr | C5: Leverantör/beskrivning | D5: Belopp
A6: 2010-03-08 | C6: Exempel 1 | D6: 300.00
A10: Delsumma | D10: =SUBTOTAL(109,Utgift13[Belopp]) -> 300.00
A11: x
A12: Utgift 2
A13: Datum | B13: IO nr | C13: Beskrivning | D13: Belopp
A14: 2010-03-04 | C14: Exempel 2 | D14: 200.00
A17: Delsumma | D17: =SUBTOTAL(109,Utgift23[Belopp]) -> 200.00
A18: x
A19: Utgift 3
A20: Datum | B20: IO nr | C20: Leverantör/beskrivning | D20: Belopp
A21: 2010-03-02 | C21: Exempel 3 | D21: 300.00
A24: Delsumma | D24: =SUBTOTAL(109,Utgift33[Belopp]) -> 300.00
A25: x
A26: Utgift 4
A27: Datum | B27: IO nr | C27: Leverantör/beskrivning | D27: Belopp
A28: 2010-03-10 | C28: Exempel 4 | D28: 400.00
A30: Delsumma | D30: =SUBTOTAL(109,Utgift43[Belopp]) -> 400.00
A31: s
A32: Utgift 5
A33: Datum | B33: IO nr | C33: Leverantör/beskrivning | D33: Belopp
A34: 2010-03-25 | C34: Exempel 5 | D34: 500.00
A36: Delsumma | D36: =SUBTOTAL(109,Utgift53[Belopp]) -> 500.00

Sheet Apr
A1: Utgifter i april
C3: TOTALT | D3: =SUM(D10,D17,D24,D30,D36) -> 1,800.00
A4: Utgift 1
A5: Datum | B5: IO nr | C5: Leverantör/beskrivning | D5: Belopp
A6: 2010-04-08 | C6: Exempel 1 | D6: 400.00
A10: Delsumma | D10: =SUBTOTAL(109,Utgift14[Belopp]) -> 400.00
A11: x
A12: Utgift 2
A13: Datum | B13: IO nr | C13: Beskrivning | D13: Belopp
A14: 2010-04-04 | C14: Exempel 2 | D14: 200.00
A17: Delsumma | D17: =SUBTOTAL(109,Utgift24[Belopp]) -> 200.00
A18: x
A19: Utgift 3
A20: Datum | B20: IO nr | C20: Leverantör/beskrivning | D20: Belopp
A21: 2010-04-02 | C21: Exempel 3 | D21: 300.00
A24: Delsumma | D24: =SUBTOTAL(109,Utgift34[Belopp]) -> 300.00
A25: x
A26: Utgift 4
A27: Datum | B27: IO nr | C27: Leverantör/beskrivning | D27: Belopp
A28: 2010-04-10 | C28: Exempel 4 | D28: 400.00
A30: Delsumma | D30: =SUBTOTAL(109,Utgift44[Belopp]) -> 400.00
A31: s
A32: Utgift 5
A33: Datum | B33: IO nr | C33: Leverantör/beskrivning | D33: Belopp
A34: 2010-04-25 | C34: Exempel 5 | D34: 500.00
A36: Delsumma | D36: =SUBTOTAL(109,Utgift54[Belopp]) -> 500.00

Sheet Maj
A1: Utgifter i maj
C3: TOTALT | D3: =SUM(D10,D17,D24,D30,D36) -> 1,900.00
A4: Utgift 1
A5: Datum | B5: IO nr | C5: Leverantör/beskrivning | D5: Belopp
A6: 2010-05-08 | C6: Exempel 1 | D6: 500.00
A10: Delsumma | D10: =SUBTOTAL(109,Utgift15[Belopp]) -> 500.00
A11: x
A12: Utgift 2
A13: Datum | B13: IO nr | C13: Beskrivning | D13: Belopp
A14: 2010-05-04 | C14: Exempel 2 | D14: 200.00
A17: Delsumma | D17: =SUBTOTAL(109,Utgift25[Belopp]) -> 200.00
A18: x
A19: Utgift 3
A20: Datum | B20: IO nr | C20: Leverantör/beskrivning | D20: Belopp
A21: 2010-05-02 | C21: Exempel 3 | D21: 300.00
A24: Delsumma | D24: =SUBTOTAL(109,Utgift35[Belopp]) -> 300.00
A25: x
A26: Utgift 4
A27: Datum | B27: IO nr | C27: Leverantör/beskrivning | D27: Belopp
A28: 2010-05-10 | C28: Exempel 4 | D28: 400.00
A30: Delsumma | D30: =SUBTOTAL(109,Utgift45[Belopp]) -> 400.00
A31: s
A32: Utgift 5
A33: Datum | B33: IO nr | C33: Leverantör/beskrivning | D33: Belopp
A34: 2010-05-25 | C34: Exempel 5 | D34: 500.00
A36: Delsumma | D36: =SUBTOTAL(109,Utgift55[Belopp]) -> 500.00

Sheet Jun
A1: Utgifter i juni
C3: TOTALT | D3: =SUM(D10,D17,D24,D30,D36) -> 2,000.00
A4: Utgift 1
A5: Datum | B5: IO nr | C5: Leverantör/beskrivning | D5: Belopp
A6: 2010-06-08 | C6: Exempel 1 | D6: 600.00
A10: Delsumma | D10: =SUBTOTAL(109,Utgift16[Belopp]) -> 600.00
A11: x
A12: Utgift 2
A13: Datum | B13: IO nr | C13: Beskrivning | D13: Belopp
A14: 2010-06-04 | C14: Exempel 2 | D14: 200.00
A17: Delsumma | D17: =SUBTOTAL(109,Utgift26[Belopp]) -> 200.00
A18: x
A19: Utgift 3
A20: Datum | B20: IO nr | C20: Leverantör/beskrivning | D20: Belopp
A21: 2010-06-02 | C21: Exempel 3 | D21: 300.00
A24: Delsumma | D24: =SUBTOTAL(109,Utgift36[Belopp]) -> 300.00
A25: x
A26: Utgift 4
A27: Datum | B27: IO nr | C27: Leverantör/beskrivning | D27: Belopp
A28: 2010-06-10 | C28: Exempel 4 | D28: 400.00
A30: Delsumma | D30: =SUBTOTAL(109,Utgift46[Belopp]) -> 400.00
A31: s
A32: Utgift 5
A33: Datum | B33: IO nr | C33: Leverantör/beskrivning | D33: Belopp
A34: 2010-06-25 | C34: Exempel 5 | D34: 500.00
A36: Delsumma | D36: =SUBTOTAL(109,Utgift56[Belopp]) -> 500.00

Sheet Jul
A1: Utgifter i juli
C3: TOTALT | D3: =SUM(D10,D17,D24,D30,D36) -> 2,100.00
A4: Utgift 1
A5: Datum | B5: IO nr | C5: Leverantör/beskrivning | D5: Belopp
A6: 2010-07-08 | C6: Exempel 1 | D6: 700.00
A10: Delsumma | D10: =SUBTOTAL(109,Utgift17[Belopp]) -> 700.00
A11: x
A12: Utgift 2
A13: Datum | B13: IO nr | C13: Beskrivning | D13: Belopp
A14: 2010-07-04 | C14: Exempel 2 | D14: 200.00
A17: Delsumma | D17: =SUBTOTAL(109,Utgift27[Belopp]) -> 200.00
A18: x
A19: Utgift 3
A20: Datum | B20: IO nr | C20: Leverantör/beskrivning | D20: Belopp
A21: 2010-07-02 | C21: Exempel 3 | D21: 300.00
A24: Delsumma | D24: =SUBTOTAL(109,Utgift37[Belopp]) -> 300.00
A25: x
A26: Utgift 4
A27: Datum | B27: IO nr | C27: Leverantör/beskrivning | D27: Belopp
A28: 2010-07-10 | C28: Exempel 4 | D28: 400.00
A30: Delsumma | D30: =SUBTOTAL(109,Utgift47[Belopp]) -> 400.00
A31: s
A32: Utgift 5
A33: Datum | B33: IO nr | C33: Leverantör/beskrivning | D33: Belopp
A34: 2010-07-25 | C34: Exempel 5 | D34: 500.00
A36: Delsumma | D36: =SUBTOTAL(109,Utgift57[Belopp]) -> 500.00

Sheet Aug
A1: Utgifter i augusti
C3: TOTALT | D3: =SUM(D10,D17,D24,D30,D36) -> 2,200.00
A4: Utgift 1
A5: Datum | B5: IO nr | C5: Leverantör/beskrivning | D5: Belopp
A6: 2010-08-08 | C6: Exempel 1 | D6: 800.00
A10: Delsumma | D10: =SUBTOTAL(109,Utgift18[Belopp]) -> 800.00
A11: x
A12: Utgift 2
A13: Datum | B13: IO nr | C13: Beskrivning | D13: Belopp
A14: 2010-08-04 | C14: Exempel 2 | D14: 200.00
A17: Delsumma | D17: =SUBTOTAL(109,Utgift28[Belopp]) -> 200.00
A18: x
A19: Utgift 3
A20: Datum | B20: IO nr | C20: Leverantör/beskrivning | D20: Belopp
A21: 2010-08-02 | C21: Exempel 3 | D21: 300.00
A24: Delsumma | D24: =SUBTOTAL(109,Utgift38[Belopp]) -> 300.00
A25: x
A26: Utgift 4
A27: Datum | B27: IO nr | C27: Leverantör/beskrivning | D27: Belopp
A28: 2010-08-10 | C28: Exempel 4 | D28: 400.00
A30: Delsumma | D30: =SUBTOTAL(109,Utgift48[Belopp]) -> 400.00
A31: s
A32: Utgift 5
A33: Datum | B33: IO nr | C33: Leverantör/beskrivning | D33: Belopp
A34: 2010-08-25 | C34: Exempel 5 | D34: 500.00
A36: Delsumma | D36: =SUBTOTAL(109,Utgift58[Belopp]) -> 500.00

Sheet Sep
A1: Utgifter i september
C3: TOTALT | D3: =SUM(D10,D17,D24,D30,D36) -> 2,300.00
A4: Utgift 1
A5: Datum | B5: IO nr | C5: Leverantör/beskrivning | D5: Belopp
A6: 2010-09-08 | C6: Exempel 1 | D6: 900.00
A10: Delsumma | D10: =SUBTOTAL(109,Utgift19[Belopp]) -> 900.00
A11: x
A12: Utgift 2
A13: Datum | B13: IO nr | C13: Beskrivning | D13: Belopp
A14: 2010-09-04 | C14: Exempel 2 | D14: 200.00
A17: Delsumma | D17: =SUBTOTAL(109,Utgift29[Belopp]) -> 200.00
A18: x
A19: Utgift 3
A20: Datum | B20: IO nr | C20: Leverantör/beskrivning | D20: Belopp
A21: 2010-09-02 | C21: Exempel 3 | D21: 300.00
A24: Delsumma | D24: =SUBTOTAL(109,Utgift39[Belopp]) -> 300.00
A25: x
A26: Utgift 4
A27: Datum | B27: IO nr | C27: Leverantör/beskrivning | D27: Belopp
A28: 2010-09-10 | C28: Exempel 4 | D28: 400.00
A30: Delsumma | D30: =SUBTOTAL(109,Utgift49[Belopp]) -> 400.00
A31: s
A32: Utgift 5
A33: Datum | B33: IO nr | C33: Leverantör/beskrivning | D33: Belopp
A34: 2010-09-25 | C34: Exempel 5 | D34: 500.00
A36: Delsumma | D36: =SUBTOTAL(109,Utgift59[Belopp]) -> 500.00

Sheet Okt
A1: Utgifter i oktober
C3: TOTALT | D3: =SUM(D10,D17,D24,D30,D36) -> 2,400.00
A4: Utgift 1
A5: Datum | B5: IO nr | C5: Leverantör/beskrivning | D5: Belopp
A6: 2010-10-08 | C6: Exempel 1 | D6: 1,000.00
A10: Delsumma | D10: =SUBTOTAL(109,Utgift110[Belopp]) -> 1,000.00
A11: x
A12: Utgift 2
A13: Datum | B13: IO nr | C13: Beskrivning | D13: Belopp
A14: 2010-10-04 | C14: Exempel 2 | D14: 200.00
A17: Delsumma | D17: =SUBTOTAL(109,Utgift210[Belopp]) -> 200.00
A18: x
A19: Utgift 3
A20: Datum | B20: IO nr | C20: Leverantör/beskrivning | D20: Belopp
A21: 2010-10-02 | C21: Exempel 3 | D21: 300.00
A24: Delsumma | D24: =SUBTOTAL(109,Utgift310[Belopp]) -> 300.00
A25: x
A26: Utgift 4
A27: Datum | B27: IO nr | C27: Leverantör/beskrivning | D27: Belopp
A28: 2010-10-10 | C28: Exempel 4 | D28: 400.00
A30: Delsumma | D30: =SUBTOTAL(109,Utgift410[Belopp]) -> 400.00
A31: s
A32: Utgift 5
A33: Datum | B33: IO nr | C33: Leverantör/beskrivning | D33: Belopp
A34: 2010-10-25 | C34: Exempel 5 | D34: 500.00
A36: Delsumma | D36: =SUBTOTAL(109,Utgift510[Belopp]) -> 500.00

Sheet Nov
A1: Utgifter i november
C3: TOTALT | D3: =SUM(D10,D17,D24,D30,D36) -> 2,500.00
A4: Utgift 1
A5: Datum | B5: IO nr | C5: Leverantör/beskrivning | D5: Belopp
A6: 2010-11-08 | C6: Exempel 1 | D6: 1,100.00
A10: Delsumma | D10: =SUBTOTAL(109,Utgift111[Belopp]) -> 1,100.00
A11: x
A12: Utgift 2
A13: Datum | B13: IO nr | C13: Beskrivning | D13: Belopp
A14: 2010-11-04 | C14: Exempel 2 | D14: 200.00
A17: Delsumma | D17: =SUBTOTAL(109,Utgift211[Belopp]) -> 200.00
A18: x
A19: Utgift 3
A20: Datum | B20: IO nr | C20: Leverantör/beskrivning | D20: Belopp
A21: 2010-11-02 | C21: Exempel 3 | D21: 300.00
A24: Delsumma | D24: =SUBTOTAL(109,Utgift311[Belopp]) -> 300.00
A25: x
A26: Utgift 4
A27: Datum | B27: IO nr | C27: Leverantör/beskrivning | D27: Belopp
A28: 2010-11-10 | C28: Exempel 4 | D28: 400.00
A30: Delsumma | D30: =SUBTOTAL(109,Utgift411[Belopp]) -> 400.00
A31: s
A32: Utgift 5
A33: Datum | B33: IO nr | C33: Leverantör/beskrivning | D33: Belopp
A34: 2010-11-25 | C34: Exempel 5 | D34: 500.00
A36: Delsumma | D36: =SUBTOTAL(109,Utgift511[Belopp]) -> 500.00

Sheet Dec
A1: Utgifter i december
C3: TOTALT | D3: =SUM(D10,D17,D24,D30,D36) -> 2,600.00
A4: Utgift 1
A5: Datum | B5: IO nr | C5: Leverantör/beskrivning | D5: Belopp
A6: 2010-12-08 | C6: Exempel 1 | D6: 1,200.00
A10: Delsumma | D10: =SUBTOTAL(109,Utgift112[Belopp]) -> 1,200.00
A11: x
A12: Utgift 2
A13: Datum | B13: IO nr | C13: Beskrivning | D13: Belopp
A14: 2010-12-04 | C14: Exempel 2 | D14: 200.00
A17: Delsumma | D17: =SUBTOTAL(109,Utgift212[Belopp]) -> 200.00
A18: x
A19: Utgift 3
A20: Datum | B20: IO nr | C20: Leverantör/beskrivning | D20: Belopp
A21: 2010-12-02 | C21: Exempel 3 | D21: 300.00
A24: Delsumma | D24: =SUBTOTAL(109,Utgift312[Belopp]) -> 300.00
A25: x
A26: Utgift 4
A27: Datum | B27: IO nr | C27: Leverantör/beskrivning | D27: Belopp
A28: 2010-12-10 | C28: Exempel 4 | D28: 400.00
A30: Delsumma | D30: =SUBTOTAL(109,Utgift412[Belopp]) -> 400.00
A31: s
A32: Utgift 5
A33: Datum | B33: IO nr | C33: Leverantör/beskrivning | D33: Belopp
A34: 2010-12-25 | C34: Exempel 5 | D34: 500.00
A36: Delsumma | D36: =SUBTOTAL(109,Utgift512[Belopp]) -> 500.00
